Cogmind - Beta 14 --- EXPLORER MODE // 2024.10.08 @ 21:02:43 Player: Cwaftwer Result: Self-destructed Performance ------------- Evolutions (2) 1000 Regions Visited (4) 800 Robots Destroyed (61) 305 Value Destroyed (1757) 1757 Prototype IDs (3) 60 Alien Tech Used (0) 0 Bonus (2705) 2705 TOTAL SCORE: 6627 Bonus ------- Super Gauntlet 2282 High Alert Combat Kills 223 Entered Garrisons 200 Cogmind --------- Core Integrity 480/550 Matter 292/300 Energy 415/415 System Corruption 2% Temperature Cool (0) Movement Hovering (48) Location -8/Garrison Parts ------- > --- POWER (2) -------- Deuterium Engine Nuclear Core > --- PROPULSION (4) --- Airjet Airjet Airjet Airjet > --- UTILITY (4) ------ Cooling System Advanced Weight Redist. System (fused) Advanced Visual Processing Unit Improved Propulsion Shielding > --- WEAPON (2) ------- Minigun Minigun > --- INVENTORY (5) ---- Hardened Medium Armor Plating Heavy Rocket Launcher Plasma Cutter Heavy Flail Peak State ------------ > --- POWER ------------ Deuterium Engine Nuclear Core > --- PROPULSION ------- Airjet Airjet Airjet Airjet > --- UTILITY ---------- Cooling System Advanced Weight Redist. System Advanced Visual Processing Unit Improved Propulsion Shielding > --- WEAPON ----------- Minigun Minigun > --- INVENTORY -------- Hardened Medium Armor Plating Heavy Rocket Launcher Plasma Cutter Heavy Flail [Rating: 36] Favorites ----------- Power Deuterium Engine Engine Deuterium Engine Power Core Nuclear Core Propulsion Airjet Leg Improved Aluminum Leg Hover Unit Airjet Flight Unit Flight Unit Utility Heat Sink Device Heat Sink Processor Advanced Visual Processing Unit Protection Improved Propulsion Shielding Weapon Minigun Energy Gun Improved EM Shotgun Ballistic Gun Minigun Ballistic Cannon Light Cannon Launcher EMP Blaster Build | -11 -10 -9 -8 -8 ------- Run | Yrd Mat Mat Mat Gar Slots Evolved 5 | . 1 2 2 . Power 1 | . . . 1 . Propulsion 2 | . . 1 1 . Utility 2 | . 1 1 . . Weapon . | . . . . . Parts Attached 31 | . 1 19 11 . Power 6 | . . 3 3 . Engine 4 | . . 3 1 . Core 2 | . . . 2 . Reactor . | . . . . . Propulsion 8 | . . 7 1 . Treads . | . . . . . Leg 2 | . . 2 . . Wheel . | . . . . . Hover 4 | . . 3 1 . Flight 2 | . . 2 . . Utility 10 | . . 4 6 . Device 7 | . . 3 4 . Storage . | . . . . . Processor 1 | . . . 1 . Hackware . | . . . . . Protection 2 | . . 1 1 . Artifact . | . . . . . Weapon 7 | . 1 5 1 . Energy Gun 1 | . . 1 . . Energy Cannon . | . . . . . Ballistic Gun 3 | . . 2 1 . Ballistic Cannon 1 | . 1 . . . Launcher 2 | . . 2 . . Special Weapon . | . . . . . Impact Weapon . | . . . . . Slashing Weapon . | . . . . . Piercing Weapon . | . . . . . Special Melee Weapon . | . . . . . Unidentified Prototypes 1 | . . 1 . . Parts Lost 2 | . . 1 1 . Power . | . . . . . Propulsion 1 | . . 1 . . Utility 1 | . . . 1 . Weapon . | . . . . . Highest Loss Streak 1 | . . 1 1 . To Critical Strikes . | . . . . . Average Slot Usage (%) 70 | . 9 51 98 100 Engine 7 | . . 7 8 8 Core 3 | . . . 7 8 Leg 2 | . . 5 . . Hover 16 | . . . 33 33 Flight 1 | . . 4 . . Device 15 | . . 17 18 16 Processor 2 | . . . 5 8 Protection 3 | . . . 7 8 Ballistic Gun 10 | . . 6 15 16 Ballistic Cannon 3 | . 9 6 . . Peak Build Rating 36 | . 1 25 36 36 Average Rating 20 | . . 8 34 36 On Entrance 12 | . . 1 25 36 Naked Turns 35 | . 35 . . . Heaviest Build 26 | . 3 17 26 26 Greatest Support 41 | 3 3 25 41 41 Greatest Overweight (x) 1 | . . 1 . . Average Overweight (x) . | . . . . . Largest Inventory Capacity 5 | 5 5 5 5 5 Average Capacity 5 | 5 5 5 5 5 Most Carried 5 | . 1 5 5 4 Average Carried 2 | . . 1 3 4 Final Capacity 5 | 5 5 5 5 5 Final Carried 4 | . 1 2 4 4 Class Distribution -------------------- 100% | Hacker-Mutant Dominant Class ---------------- Hacker-Mutant | -10/Materials Hacker-Mutant | -9/Materials Hacker-Mutant | -8/Materials Hacker-Mutant | -8/Garrison Resources | -11 -10 -9 -8 -8 ----------- Run | Yrd Mat Mat Mat Gar Matter Collected 1360 | 181 37 453 689 . Remotely . | . . . . . Salvage Created 2323 | . 26 1034 1263 . Parts 148 | . 2 70 76 . Haulers Intercepted 4 | . . 2 2 . Recyclers Shooed 1 | . . 1 . . Parts Field Recycled . | . . . . . Retrieved Matter . | . . . . . Parts Self-Destructed . | . . . . . Prevented . | . . . . . Kills | -11 -10 -9 -8 -8 ------- Run | Yrd Mat Mat Mat Gar Combat Hostiles Destroyed 43 | . . 23 20 . Guns 23 | . . 3 20 . Cannons 14 | . . 14 . . AOE 6 | . . 6 . . Classes Destroyed 11 | . 1 7 3 . Worker 7 | . 1 3 3 . Builder 2 | . . 1 1 . Tunneler 1 | . . 1 . . Hauler 4 | . . 2 2 . Watcher 4 | . . 1 3 . Swarmer 6 | . . 3 3 . Grunt 21 | . . 16 5 . Brawler 2 | . . . 2 . Duelist 2 | . . . 2 . Sentry 11 | . . 4 7 . Hunter 1 | . . . 1 . Best Kill Streak 13 | . 1 13 6 . Combat Bots Only 8 | . . 8 5 . Max Kills in Single Turn 3 | . 1 3 1 . Gunslinging . | . . . . . Exploded 2 | . . 2 . . Melee . | . . . . . Uniques/NPCs Destroyed . | . . . . . Combat | -11 -10 -9 -8 -8 -------- Run | Yrd Mat Mat Mat Gar Hostile Shots Fired 152 | . . 89 57 6 Missed 55 | . . 29 24 2 Damage Taken 840 | . . 437 341 62 Core 158 | . . 88 62 8 Absorbed by Shields . | . . . . . Redirected to Shielding 99 | . . . 87 12 Ignored by Resistances 526 | . . 281 207 38 Regen/Repaired (Parts) 61 | . . . 61 . Core Remaining (%) 92 | 100 100 78 . . Volleys Fired 136 | . 2 65 68 1 Largest 2 | . 1 2 2 2 Hottest 50 | . 35 50 50 50 Shots Fired 217 | . 2 77 136 2 Gun 162 | . . 24 136 2 Cannon 44 | . 2 42 . . Launcher 11 | . . 11 . . Special . | . . . . . Kinetic 206 | . 2 66 136 2 Thermal . | . . . . . Explosive . | . . . . . Electromagnetic 11 | . . 11 . . Robot Hit Streak 42 | . 2 14 42 16 Robot Miss Streak 2 | . . 1 2 . Penetration Max . | . . . . . Secondary Targets 2 | . . . 2 . Max Gunslinging Chain 1 | . . . 1 . Shots Hit Robots 168 | . 2 60 104 2 Core Hits 88 | . 1 36 49 2 Critical Kills 2 | . . . 2 . Critical Parts Destroyed . | . . . . . Critical Strikes 4 | . . 2 2 . Destroy 2 | . . . 2 . Blast 2 | . . 2 . . Melee Attacks . | . . . . . Impact . | . . . . . Slashing . | . . . . . Piercing . | . . . . . Sneak Attacks . | . . . . . Combat Hostiles . | . . . . . Follow-up Attacks . | . . . . . Damage Inflicted 3311 | . 33 1575 1687 16 Guns 1985 | . . 297 1672 16 Cannons 672 | . 33 639 . . Explosions 639 | . . 639 . . Melee . | . . . . . Ramming 15 | . . . 15 . Kinetic 2657 | . 33 936 1672 16 Thermal 180 | . . 180 . . Explosive . | . . . . . Electromagnetic 459 | . . 459 . . Impact . | . . . . . Slashing . | . . . . . Piercing . | . . . . . Highest Corruption 2 | . . . 2 2 Average Corruption 1 | . . . 1 2 Corruption Purged . | . . . . . Corruption Blocked . | . . . . . Effects 4 | . . . 4 . Message Errors 1 | . . . 1 . Heat Flow Errors 1 | . . . 1 . Energy Discharges 1 | . . . 1 . Parts Fused 1 | . . . 1 . Overload Shots . | . . . . . Overflow Damage 32 | . . 32 . . Projectiles . | . . . . . Explosions 32 | . . 32 . . Melee . | . . . . . Knockbacks 5 | . . 5 . . Impact . | . . . . . Kinetic 5 | . . 5 . . Secondary . | . . . . . Self-Inflicted Damage 10 | . . 3 7 . Shots 2 | . . 2 . . Rammed 1 | . . . 1 . Targets Rammed 1 | . . . 1 . Kicked . | . . . . . Crushed . | . . . . . Highest Temperature 380 | . . 380 132 . Average Temperature 102 | . . 201 35 . Received Heat Transfer 474 | . . 285 171 18 Siege Activations . | . . . . . Robots Corrupted . | . . . . . Combat Hostiles . | . . . . . Parts Fried . | . . . . . Impact Corruptions . | . . . . . Robots Melted . | . . . . . Combat Hostiles . | . . . . . Parts Melted 1 | . . 1 . . Heat Transferred 350 | . . 350 . . Parts Sabotaged . | . . . . . Parts Stolen . | . . . . . Parts Stripped . | . . . . . Power Chain Reactions 4 | . . 4 . . Alert | -11 -10 -9 -8 -8 ------- Run | Yrd Mat Mat Mat Gar Peak Influence 724 | . 32 724 646 257 Initial 257 | . . 9 141 257 Average 333 | . 18 379 384 257 Maximum Alert Level 3 | . . 3 2 1 Low Security (%) 33 | 100 100 29 20 . Level 1 24 | . . 12 37 100 Level 2 39 | . . 51 42 . Level 3 2 | . . 7 . . Level 4 . | . . . . . Level 5 . | . . . . . High Security . | . . . . . Max Security . | . . . . . Squads Dispatched 4 | . . 3 1 . Investigation . | . . . . . Extermination . | . . . . . Reinforcement 3 | . . 3 . . Assault . | . . . . . Garrison 1 | . . . 1 . Intercept . | . . . . . Searches Triggered . | . . . . . Construction Impeded . | . . . . . Haulers Reinforced . | . . . . . Active Scanning Responses . | . . . . . Cargo Convoy Interrupts . | . . . . . Stealth | -11 -10 -9 -8 -8 --------- Run | Yrd Mat Mat Mat Gar Distress Signals 4 | . . 3 1 . Communications Jammed . | . . . . . Distress Signals . | . . . . . Times Spotted 64 | . 1 36 23 4 Peak Tracking Total 6 | . 1 6 6 4 Tactical Retreats 3 | . . 2 1 . Traps | -11 -10 -9 -8 -8 ------- Run | Yrd Mat Mat Mat Gar Traps Triggered 4 | . . . 4 . Indirectly . | . . . . . Trap Hack Attempts . | . . . . . Triggered . | . . . . . Disarmed . | . . . . . Reprogrammed . | . . . . . Reused . | . . . . . Traps Extracted . | . . . . . Installed . | . . . . . Triggered . | . . . . . Machines | -11 -10 -9 -8 -8 ---------- Run | Yrd Mat Mat Mat Gar Machines Disabled 6 | . . 4 2 . Max in Single Turn 1 | . . 1 1 . Machines Repaired . | . . . . . Machines Dismantled . | . . . . . Machines Sabotaged . | . . . . . Overloaded Fab Kills . | . . . . . Hacking | -11 -10 -9 -8 -8 --------- Run | Yrd Mat Mat Mat Gar Machines Accessed 8 | . 3 1 4 . Terminals 6 | . 3 1 2 . Fabricators . | . . . . . Repair Stations 1 | . . . 1 . Recycling Units . | . . . . . Scanalyzers . | . . . . . Garrison Access 1 | . . . 1 . Total Hacks 14 | . 5 2 7 . Successful 9 | . 3 . 6 . Failed 5 | . 2 2 1 . Catastrophic 2 | . 1 . 1 . Database Lockouts . | . . . . . Manual 6 | . 3 2 1 . Terminals 11 | . 5 2 4 . Fabricators . | . . . . . Repair Stations 2 | . . . 2 . Recycling Units . | . . . . . Scanalyzers . | . . . . . Garrison Access 1 | . . . 1 . Terminal Hacks 6 | . 3 . 3 . Part Schematic 1 | . 1 . . . Robot Analysis 1 | . . . 1 . Prototype ID Bank 1 | . 1 . . . Level Access Points 1 | . 1 . . . Locate Traps 1 | . . . 1 . Zone Layout 1 | . . . 1 . Fabricator Hacks . | . . . . . Repair Station Hacks 2 | . . . 2 . Scan Component 1 | . . . 1 . Repair 1 | . . . 1 . Recycling Unit Hacks . | . . . . . Scanalyzer . | . . . . . Garrison Access Hacks 1 | . . . 1 . Unlock Access 1 | . . . 1 . Unauthorized Hacks . | . . . . . Terminals . | . . . . . Fabricators . | . . . . . Repair Stations . | . . . . . Recycling Units . | . . . . . Scanalyzers . | . . . . . Garrison Access . | . . . . . Data Cores Recovered . | . . . . . Used . | . . . . . Hacking Detections 6 | . 1 1 4 . Full Trace Events . | . . . . . Feedback Events . | . . . . . Feedback Blocked . | . . . . . Robot Schematics Acquired . | . . . . . Robots Built . | . . . . . Authchips . | . . . . . Time . | . . . . . Total Robot Build Rating . | . . . . . Part Schematics Acquired 1 | . 1 . . . Parts Built . | . . . . . Authchips . | . . . . . Time . | . . . . . Total Part Build Rating . | . . . . . Parts Repaired 1 | . . . 1 . Time 38 | . . . 38 . Parts Recycled . | . . . . . Recycled Matter . | . . . . . Retrieved Matter . | . . . . . Retrieved Components . | . . . . . Parts Scanalyzed . | . . . . . Part Schematics Acquired . | . . . . . Parts Damaged . | . . . . . Bothacking | -11 -10 -9 -8 -8 ------------ Run | Yrd Mat Mat Mat Gar Used RIF Installer . | . . . . . Robots Hacked . | . . . . . Non-combat . | . . . . . Combat . | . . . . . Robot Hacks Applied . | . . . . . Relay Couplers Released . | . . . . . Fabnet Peak Effective % . | . . . . . Robots Rewired . | . . . . . Allies Hacked . | . . . . . Hacks Repelled . | . . . . . Allies | -11 -10 -9 -8 -8 -------- Run | Yrd Mat Mat Mat Gar Total Allies . | . . . . . Largest Group . | . . . . . Highest-Rated Group . | . . . . . Highest-Rated Ally . | . . . . . Total Orders . | . . . . . Ally Attacks . | . . . . . Total Damage . | . . . . . Kills . | . . . . . Allies Corrupted . | . . . . . Allies Melted . | . . . . . Intel | -11 -10 -9 -8 -8 ------- Run | Yrd Mat Mat Mat Gar Robot Analysis Total 1 | . . . 1 . Derelict Logs Recovered . | . . . . . Drone Launches . | . . . . . Drone Recoveries . | . . . . . Exploration | -11 -10 -9 -8 -8 ------------- Run | Yrd Mat Mat Mat Gar Turns Passed 1248 | 11 147 480 585 25 Spaces Moved 1361 | 22 280 356 658 45 Core 443 | 22 280 141 . . Treads . | . . . . . Legs 52 | . . 52 . . Wheels . | . . . . . Hover 712 | . . 9 658 45 Flight 154 | . . 154 . . Fastest Speed 37 | 50 50 37 48 48 Average Speed 55 | 50 50 75 48 48 Slowest Speed 190 | 50 50 190 48 48 Overloaded Moves . | . . . . . Propulsion Burnouts . | . . . . . Robots Hopped . | . . . . . Cave-ins Triggered . | . . . . . Exploration Rate (%) 37 | 4 50 39 69 25 Regions Visited 4 Branch Regions . Pre-discovered Areas . | . . . . . Known Exits Taken 4 | 1 1 1 1 . Unknown Exits Taken . | . . . . . Scrap Searched . | . . . . . Spaces Dug . | . . . . . Terrain Destroyed 2 | . . 2 . . Melee . | . . . . . Projectile . | . . . . . AOE 2 | . . 2 . . Terrain Rammed . | . . . . . Walls Destroyed . | . . . . . Machines Disabled . | . . . . . Actions | -11 -10 -9 -8 -8 --------- Run | Yrd Mat Mat Mat Gar Total 1670 | 21 284 499 820 46 Wait 96 | . . 33 63 . Move 1358 | 21 279 355 658 45 Hop . | . . . . . Pick Up 34 | . 2 19 13 . Fast Attach 1 | . . . 1 . Attach 28 | . 1 18 9 . Detach . | . . . . . Swap 2 | . . 1 1 . Drop 14 | . . 8 6 . Fire 136 | . 2 65 68 1 Melee . | . . . . . Ram 1 | . . . 1 . Kick . | . . . . . Crush . | . . . . . Escape Stasis . | . . . . . Rewire . | . . . . . Trap . | . . . . . Miscellaneous . | . . . . . Route ------- -11/Scrapyard -10/Materials (discovered 3 exits: *Mat x3) -9/Materials -8/Materials -8/Garrison History --------- Turn | Location | Event 3 | -11/Scrapyard | Identified exit to Materials 3 | -11/Scrapyard | Discovered exit to Materials (range 16) 12 | -11/Scrapyard | Entered Materials 12 | -10/Materials | Evolved 1 slot: Utility x1 110 | -10/Materials | Identified exit to Materials 159 | -10/Materials | Entered another Materials area 159 | -9/Materials | Evolved 2 slots: Propulsion x1, Utility x1 224 | -9/Materials | Identified exit to Mines 224 | -9/Materials | Discovered exit to Mines (range 13) 303 | -9/Materials | Build established: Hacker-Mutant 383 | -9/Materials | Destroyed 8 combat bots 466 | -9/Materials | Destroyed 7 combat bots 481 | -9/Materials | Identified exit to Storage 481 | -9/Materials | Discovered exit to Storage (range 15) 608 | -9/Materials | Identified exit to Materials 608 | -9/Materials | Discovered exit to Materials (range 14) 639 | -9/Materials | Entered another Materials area 639 | -8/Materials | Evolved 2 slots: Power x1, Propulsion x1 749 | -8/Materials | Identified exit to Factory 749 | -8/Materials | Discovered exit to Factory (range 15) 1000 | -8/Materials | Discovered exit to Factory (range 4) 1046 | -8/Materials | Repaired Imp. Propulsion Shielding 1204 | -8/Materials | Garrison activated, responded to threat 1224 | -8/Materials | Identified exit to Garrison 1224 | -8/Materials | Entered Garrison 1247 | -8/Garrison | Triggered checkpoint 1249 | -8/Garrison | Self-destructed Last Messages --------------- Acquired 37 matter. Y-45 Defender calls for garrison reinforcements. ALERT: Activating Garrison Access M001. Acquired 8 matter. Y-45 Defender destroyed. Acquired 8 matter. B-36 Bruiser suffers critical hit (Destroy). B-36 Bruiser destroyed. L-31 Rogue destroyed. Acquired 24 matter. Connecting with Garrison Access... >>Unlock Access door unlocked. EXIT=UNLOCKED: GARRISON LOCATION=GARRISON GOAL=ESCAPE C-30 ARC bursts open, deploying its payload. L-31 Rogue unfolds itself. G-47 Trooper unfolds itself. Knocked back. Map ----- +----------------------------------------------------+ | ??#####????????????# !"#??????????????????? | | ??# #????????????# !"#??????????????????? | | ??# ############## !"#??????????????????? | | ??# !"#??????????????????? | | ??# ""#??????????????????? | | ??############## ##"!!!!!!"""#??????????????????? | | ??????????## ## ##""""""""""#??????????????????? | | ?????????## # #############??????????????????? | | ?????????# #??????????????????????????????? | | ?????????# # # #??????????????????????????????? | | ?????????# # # #??????????????????????????????? | | ?????????####### ###########????????????????????? | | ?????????# #????????????????????? | | ?????????# ##### #????????????????????? | | ???????????????# ######## #????????????????????? | | ???????????##### #??????? #????????????????????? | | ???????????# %+" #??????? #????????????????????? | | ???????????##### #??????? #????????????????????? | | ???????????????# #??????? #????????????????????? | | ???????????????# #??????? #????????????????????? | | ???????????????# #??????? #????????????????????? | | ???????????????# #?????## ##""""## ##?????????? | | ???????????????# ####### ##????????? | | ???????????????# ?????? | | ???????????????# ?????? | | ???????????????##########@ ## ## #?????????? | | ????????????????????????# cc#?????#??????????????? | | ???????????????????????? ???????????????????? | | ???????????????????????? ?????????????????? | | ???????????????????????g ???????????????? | | ???????????????????????g ?????????????? | | ??????????????????????### ## ## ???????????? | | ????????????????????????# #? #??? #?????????? | | ????????????????????????# ?? ?????????????? | | ????????????????????????# ??? ????????????? | | ????????????????????????# ??? ???????????? | | ?????????????????????????# ##???"## ??????????? | | ?????????????????????????? #???????? #?????????? | | ?????????????????????????? #????????? #?????????? | | ?????????????????????????? #??????????#?????????? | | ?????????????????????????? #????????????????????? | | ?????????????????????????? #????????????????????? | | ?????????????????????????? #????????????????????? | | ?????????????????????????? ?????????????????????? | | ?????????????????????????? ?????????????????????? | | ?????????????????????????????????????????????????? | | ?????????????????????????????????????????????????? | | ?????????????????????????????????????????????????? | | ?????????????????????????????????????????????????? | | ?????????????????????????????????????????????????? | +----------------------------------------------------+ Best States ------------- Heat Dissipation 55 Energy Generation 23 Energy Capacity 415 Matter Stores 300 Matter Capacity 300 Sight Range 20 Terrain Scan Density 10 Additional Mass Support 9 Resistance: KI 35 Resistance: TH 35 Resistance: EX 35 Resistance: EM 35 Resistance: I 35 Resistance: S 35 Resistance: P 35 Propulsion Shielding 66 Evasion (%) 62 Offensive Hacking 20 Item Schematics ----------------- Flight Unit | -10/Materials | Hacked Robot Schematics ------------------ None Fabricated ------------ Nothing Alien Tech Used ----------------- None Achievements -------------- None Challenges ------------ Super Gauntlet Game ------ Seed AerolevPlasmaBoregun Manual? 0 Play Time 00:17:39 Cumulative 133.2 hours Start 2024.10.08 @ 20:44:23 End 2024.10.08 @ 21:02:43 Sessions 1 Manual Loads 0 Difficulty Explorer Special Mode None Game No. 114 Rogue 77 Adventurer 1 Explorer 36 Win Type - Total 15 Types 12/0/0/3/0/0/0/0/0 Lore% 61 Gallery% 67 Achievement% 68 Wizard Run 0 Options --------- Layout 1 ASCII 0 Keyboard 0 Movement Mouse Keybinds 0 Fullscreen 1 Font 24/Smallcaps Map View 50x40 Zoom Use 0% Tactical HUD 0 Map Filters NONE Filters NONE Steam 1 RUN: 0f57e874-62cd-4732-bcaa-e53b847d60b5